fUSD/lending_fUSD_20241125
["ID","MTS","AMOUNT","RATE_DAILY","PERIOD"]
[343254877,1732532920020,-395.82069838,0.00042617,21]
[343254878,1732532920096,-504.82,0.00042617,21]
[343254879,1732532920168,-542.31,0.00042617,21]
[343254880,1732532920244,-500.0,0.00042617,21]
[343254881,1732532920315,-725.84,0.00042617,21]
[343254882,1732532920380,-485.54247364,0.00042617,21]
[343254883,1732532920458,-2192.49,0.00042617,21]
[343254884,1732532920522,-1580.0,0.00042617,21]
[343254885,1732532920587,-671.48,0.00042617,21]
[343254886,1732532920647,-633.88,0.00042617,21]
[343254887,1732532920709,-601.48901192,0.00042617,21]
[343254888,1732532920773,-1292.43,0.00042617,21]
[343254889,1732532920834,-500.0,0.00042617,21]
[343254890,1732532920895,-700.87,0.00042617,21]
[343254891,1732532920959,-713.25,0.00042617,21]
[343254892,1732532921018,-875.61,0.00042617,21]
[343254893,1732532921079,-5528.84,0.00042617,21]
[343254894,1732532921143,-1499.87,0.00042617,21]
[343254895,1732532921218,-1922.44,0.00042617,21]
[343254896,1732532921286,-500.0,0.00042617,21]
[343254897,1732532921351,-500.0,0.00042617,21]
[343254898,1732532921417,-2135.66,0.00042636,21]
[343254899,1732532921482,-500.0,0.00042636,21]
[343254900,1732532921546,-500.0,0.00042636,21]
[343254901,1732532921606,-500.0,0.00042636,21]
[343254902,1732532921666,-807.3,0.00042636,21]
[343254903,1732532921725,-500.0,0.00042636,21]
[343254904,1732532921783,-179.96984246,0.00042636,21]
[343254905,1732532921843,-500.0,0.00042636,21]
[343254906,1732532921902,-757.94,0.00042636,21]
[343254907,1732532921965,-500.0,0.00042636,21]
[343254908,1732532922029,-500.0,0.00042636,21]
[343254909,1732532922087,-500.0,0.00042636,21]
[343254910,1732532922151,-500.0,0.00042636,21]
[343254911,1732532922214,-694.46,0.00042636,21]
[343254912,1732532922274,-917.86,0.00042636,21]
[343254913,1732532922336,-500.0,0.00042636,21]
[343254914,1732532922392,-500.0,0.00042636,21]
[343254915,1732532922469,-500.0,0.00042636,21]
[343254916,1732532922527,-500.0,0.00042636,21]
[343254917,1732532922586,-500.0,0.00042636,21]
[343254918,1732532922643,-500.0,0.00042636,21]
[343254919,1732532922700,-356.97478075,0.00042636,21]
[343254920,1732532922758,-500.0,0.00042636,21]
[343254921,1732532922812,-500.0,0.00042636,21]
[343254922,1732532922870,-1043.91,0.00042636,21]
[343254923,1732532922926,-500.0,0.00042636,21]
[343254924,1732532922982,-500.0,0.00042636,21]
[343254925,1732532923039,-500.0,0.00042636,21]
[343254926,1732532923096,-500.0,0.00042636,21]
[343254927,1732532923155,-500.0,0.00042636,21]
[343254928,1732532923220,-500.0,0.00042636,21]
[343254929,1732532923282,-500.0,0.00042636,21]
[343254930,1732532923346,-500.0,0.00042636,21]
[343254931,1732532923409,-500.0,0.00042636,21]
[343254932,1732532923469,-500.0,0.00042636,21]
[343254933,1732532923533,-500.0,0.00042636,21]
[343254934,1732532923595,-500.0,0.00042636,21]
[343254935,1732532923655,-500.0,0.00042636,21]
[343254936,1732532923717,-500.0,0.00042636,21]
[343254937,1732532923777,-500.0,0.00042636,21]
[343254938,1732532923841,-500.0,0.00042636,21]
[343254939,1732532923904,-500.0,0.00042636,21]
[343254940,1732532923964,-247.89361961,0.00042636,21]
[343254941,1732532924025,-598.14597709,0.00042636,21]
[343254942,1732532924085,-500.0,0.00042636,21]
[343254943,1732532924146,-500.0,0.00042636,21]
[343254944,1732532924205,-500.0,0.00042636,21]
[343254945,1732532924264,-500.0,0.00042636,21]
[343254946,1732532924322,-500.0,0.00042636,21]
[343254947,1732532924377,-402.793604,0.00042636,21]
[343254948,1732532924433,-500.0,0.00042636,21]
[343254949,1732532924492,-500.0,0.00042636,21]
[343254950,1732532924549,-500.0,0.00042636,21]
[343254951,1732532924611,-500.0,0.00042636,21]
[343254952,1732532924671,-761.85,0.00042636,21]
[343254953,1732532924731,-928.86,0.00042636,21]
[343254954,1732532924790,-500.0,0.00042636,21]
[343254955,1732532924847,-500.0,0.00042636,21]
[343254956,1732532924902,-500.0,0.00042636,21]
[343254957,1732532924960,-500.0,0.00042636,7]
[343254958,1732532925016,-779.71,0.00042636,21]
[343254959,1732532925079,-266.01298991,0.00042636,21]
[343254960,1732532925139,-500.0,0.00042636,21]
[343254961,1732532925202,-500.0,0.00042636,21]
[343254962,1732532925263,-201.15025207,0.00042636,21]
[343254963,1732532925324,-500.0,0.00042636,21]
[343254964,1732532925386,-500.0,0.00042636,21]
[343254965,1732532925446,-500.0,0.00042636,21]
[343254966,1732532925507,-500.0,0.00042636,21]
[343254967,1732532925566,-500.0,0.00042636,21]
[343254968,1732532925626,-500.0,0.00042636,21]
[343254969,1732532925695,-580.99,0.00042636,21]
[343254970,1732532925755,-500.0,0.00042636,21]
[343254971,1732532925814,-500.0,0.00042636,21]
[343254972,1732532925871,-500.0,0.00042636,21]
[343254973,1732532925926,-500.0,0.00042636,21]
[343254974,1732532925983,-500.0,0.00042636,21]
[343254975,1732532926038,-818.46,0.00042636,21]
[343254976,1732532926101,-507.36,0.00042637,21]
[343254977,1732532926161,-500.0,0.00042637,21]
[343254979,1732532926226,-500.0,0.00042637,21]
[343254984,1732532926512,-500.0,0.00042637,21]
[343254985,1732532926577,-500.0,0.00042637,21]
[343254986,1732532926636,-500.0,0.00042637,21]
[343254987,1732532926698,-500.0,0.00042637,21]
[343254988,1732532926758,-500.0,0.00042637,21]
[343254989,1732532926813,-500.0,0.00042637,21]
[343254990,1732532926872,-627.54302039,0.00042637,21]
[343254991,1732532926926,-536.4,0.00042637,21]
[343254992,1732532926983,-500.0,0.00042637,21]
[343254993,1732532927040,-500.0,0.00042637,21]
[343254994,1732532927096,-500.0,0.00042637,21]
[343254995,1732532927155,-393.99268681,0.00042637,21]
[343254996,1732532927215,-500.0,0.00042637,21]
[343254997,1732532927277,-500.0,0.00042637,21]
[343254998,1732532927333,-500.0,0.00042637,21]
[343254999,1732532927395,-581.29,0.00042637,21]
[343255000,1732532927453,-445.16632029,0.00042637,21]
[343255001,1732532927511,-500.0,0.00042637,21]
[343255002,1732532927569,-883.86,0.00042637,21]
[343255003,1732532927624,-500.0,0.00042637,21]
[343255004,1732532927686,-553.75,0.00042637,21]
[343255005,1732532927749,-711.45,0.00042637,21]
[343255006,1732532927806,-500.0,0.00042637,21]
[343255007,1732532927863,-500.0,0.00042637,21]
[343255008,1732532927918,-500.0,0.00042637,21]
[343255009,1732532927988,-652.27,0.00042637,21]
[343255010,1732532928054,-846.74,0.00042637,21]
[343255011,1732532928126,-500.0,0.00042637,21]
[343255012,1732532928204,-500.0,0.00042637,120]
[343255013,1732532928281,-500.0,0.00042637,21]
[343255014,1732532928353,-6242.43590503,0.00042639,30]
[343255015,1732532928420,-514.08697039,0.00042639,21]
[343255016,1732532928484,-444.82462701,0.00042639,21]
[343255017,1732532928547,-1149.65,0.00042639,21]
[343255018,1732532928611,-500.0,0.00042639,21]
[343255019,1732532928679,-808.32,0.00042639,21]
[343255020,1732532928754,-500.0,0.00042639,21]
[343255021,1732532928819,-500.0,0.00042639,21]
[343255022,1732532928885,-500.0,0.00042639,21]
[343255023,1732532928953,-531.88009022,0.00042639,21]
[343255024,1732532929023,-500.0,0.00042639,21]
[343255025,1732532929088,-500.0,0.00042639,21]
[343255026,1732532929153,-500.0,0.00042639,21]
[343255027,1732532929219,-500.0,0.00042639,21]
[343255028,1732532929283,-500.0,0.00042639,21]
[343255029,1732532929349,-500.0,0.00042639,21]
[343255030,1732532929416,-821.63,0.00042639,21]
[343255031,1732532929485,-500.0,0.00042639,21]
[343255032,1732532929550,-500.0,0.0004264,21]
[343255033,1732532929615,-500.0,0.0004264,21]
[343255034,1732532929680,-18627.4011841,0.0004266,2]
[343255035,1732532929746,-6717.1913146,0.0004266,2]
[343255036,1732532929811,-746.0,0.00042689,21]
[343255037,1732532929872,-3255.95,0.00042689,21]
[343255038,1732532929940,-658.123967,0.00042709,2]
[343255039,1732532930005,-814.46945996,0.0004271,20]
[343255040,1732532930074,-1224.61,0.00042738,21]
[343255041,1732532930148,-500.0,0.00042738,21]
[343255042,1732532930223,-500.0,0.00042738,21]
[343255043,1732532930295,-500.0,0.00042738,21]
[343255044,1732532930366,-1154.27,0.00042738,21]
[343255045,1732532930435,-924.22,0.00042738,21]
[343255046,1732532930504,-696.89,0.00042738,21]
[343255047,1732532930574,-3150.76,0.00042738,21]
[343255048,1732532930647,-9504.79,0.00042738,21]
[343255049,1732532930718,-7938.89,0.00042738,21]
[343255050,1732532930787,-1024.94,0.00042738,21]
[343255051,1732532930856,-3978.3,0.00042738,21]
[343255052,1732532930921,-1146.63,0.00042738,21]
[343255053,1732532930986,-1748.64,0.00042738,21]
[343255054,1732532931052,-5468.25,0.00042738,21]
[343255055,1732532931116,-708.11,0.00042738,21]
[343255056,1732532931182,-500.0,0.00042738,21]
[343255057,1732532931249,-1409.15,0.00042738,21]
[343255058,1732532931314,-758.58,0.00042738,21]
[343255059,1732532931378,-5734.8,0.00042738,21]
[343255060,1732532931449,-677.5,0.00042738,21]
[343255061,1732532931514,-580.49,0.00042738,21]
[343255062,1732532931576,-1167.03,0.00042738,21]
[343255063,1732532931640,-1719.67,0.00042738,21]
[343255064,1732532931698,-3582.8,0.00042738,21]
[343255065,1732532931759,-500.0,0.00042738,21]
[343255066,1732532931819,-4585.2,0.00042739,21]
[343255067,1732532931878,-1334.73,0.00042739,120]
[343255068,1732532931942,-851.7,0.00042739,21]
[343255069,1732532932006,-5410.63,0.00042739,21]
[343255070,1732532932067,-500.0,0.00042739,21]
[343255071,1732532932133,-1973.4,0.00042739,21]
[343255072,1732532932209,-4420.66,0.00042739,21]
[343255073,1732532932278,-5984.38,0.00042739,21]
[343255074,1732532932342,-6051.6,0.00042739,21]
[343255075,1732532932402,-1300.59,0.00042739,21]
[343255076,1732532932463,-1357.91,0.00042739,21]
[343255077,1732532932520,-3894.59,0.00042739,21]
[343255078,1732532932578,-14627.41,0.00042739,21]
[343255079,1732532932638,-2412.24,0.00042739,21]
[343255080,1732532932694,-2936.98,0.00042739,21]
[343255081,1732532932752,-173.28,0.00042752,2]
[343255082,1732532932810,-1995.12223672,0.00042799,15]
[343255083,1732532932865,-192.03,0.000428,120]
[343255084,1732532932923,-1689.116463,0.000428,30]
[343255085,1732532932978,-460.39,0.000428,30]
[343255086,1732532933038,-2387.18190944,0.00042822,15]
[343255087,1732532933096,-1591.1974072,0.00042822,10]
[343255088,1732532933152,-420.0,0.0004283,30]
[343255089,1732532933214,-765.65,0.0004283,30]
[343255090,1732532933271,-201.0,0.0004284,30]
[343255091,1732532933328,-204.0,0.0004284,30]
[343255092,1732532933388,-204.0,0.0004284,2]
[343255093,1732532933446,-152.0,0.00042862,5]
[343255094,1732532933508,-477.37234,0.0004287,16]
[343255095,1732532933564,-22173.0471414,0.00042885,7]
[343255096,1732532933624,-500.0,0.0004289,21]
[343255097,1732532933687,-1065.09,0.0004289,21]
[343255098,1732532933748,-500.0,0.0004289,21]
[343255099,1732532933811,-500.0,0.0004289,21]
[343255100,1732532933874,-500.0,0.0004289,21]
[343255101,1732532933935,-500.0,0.0004289,21]
[343255102,1732532934004,-1721.9,0.0004289,21]
[343255103,1732532934065,-776.3,0.0004289,21]
[343255104,1732532934126,-500.0,0.0004289,21]
[343255105,1732532934187,-500.0,0.0004289,21]
[343255106,1732532934248,-1826.63,0.0004289,21]
[343255107,1732532934309,-2723.73,0.0004289,21]
[343255108,1732532934369,-500.0,0.0004289,21]
[343255109,1732532934428,-951.95,0.0004289,21]
[343255110,1732532934494,-870.89,0.0004289,21]
[343255111,1732532934560,-2153.49,0.0004289,21]
[343255112,1732532934622,-500.0,0.0004289,21]
[343255113,1732532934687,-1113.59,0.0004289,21]
[343255114,1732532934748,-659.89,0.0004289,21]
[343255115,1732532934811,-500.0,0.0004289,21]
[343255116,1732532935056,-2119.8,0.0004289,21]
[343255117,1732532935153,-500.0,0.0004289,21]
[343255118,1732532935221,-500.0,0.0004289,21]
[343255119,1732532935281,-843.63,0.0004289,2]
[343255120,1732532935342,-2388.93,0.0004289,21]
[343255121,1732532935400,-4974.71,0.0004289,21]
[343255122,1732532935459,-500.0,0.0004289,21]
[343255123,1732532935517,-500.0,0.0004289,21]
[343255124,1732532935575,-500.0,0.0004289,21]
[343255125,1732532935635,-3450.2,0.0004289,21]
[343255126,1732532935693,-954.85,0.0004289,21]
[343255127,1732532935754,-500.0,0.0004289,21]
[343255128,1732532935811,-1553.14,0.0004289,21]
[343255129,1732532935872,-1151.71,0.0004289,21]
[343255130,1732532935933,-500.0,0.0004289,21]
[343255131,1732532936001,-405.39089212,0.0004289,21]
[343255132,1732532936082,-500.0,0.0004289,21]
[343255133,1732532936169,-571.37,0.0004289,21]
[343255134,1732532936254,-894.49,0.0004289,21]
[343255135,1732532936326,-3520.87,0.0004289,21]
[343255136,1732532936395,-9353.77,0.0004289,21]
[343255137,1732532936465,-1431.01,0.0004289,21]
[343255138,1732532936530,-500.0,0.0004289,21]
[343255139,1732532936596,-5664.41,0.0004289,21]
[343255140,1732532936655,-500.0,0.0004289,21]
[343255141,1732532936717,-3466.62,0.0004289,21]
[343255142,1732532936778,-18248.58,0.0004289,21]
[343255143,1732532936837,-500.0,0.0004289,21]
[343255144,1732532936898,-512.9,0.0004289,21]
[343255145,1732532936958,-500.0,0.0004289,21]
[343255146,1732532937027,-500.0,0.0004289,21]
[343255147,1732532937090,-500.0,0.0004289,21]
[343255148,1732532937156,-1656.57,0.0004289,21]
[343255149,1732532937223,-505.95,0.0004289,21]
[343255150,1732532937287,-500.0,0.0004289,21]
[343255151,1732532937351,-250.0,0.0004289,21]
[343255152,1732532937413,-500.0,0.0004289,21]
[343255153,1732532937472,-1259.85,0.0004289,21]
[343255154,1732532937535,-828.92,0.0004289,21]
[343255155,1732532937594,-500.0,0.0004289,21]
[343255156,1732532937656,-500.0,0.0004289,21]
[343255157,1732532937719,-3065.29,0.0004289,21]
[343255158,1732532937781,-500.0,0.0004289,21]
[343255159,1732532937844,-702.07,0.0004289,21]
[343255160,1732532937903,-500.0,0.0004289,21]
[343255161,1732532937970,-759.78,0.0004289,21]
[343255162,1732532938035,-500.0,0.0004289,21]
[343255163,1732532938102,-930.71,0.00042891,21]
[343255164,1732532938166,-977.78,0.00042891,21]
[343255165,1732532938235,-500.0,0.00042891,21]
[343255166,1732532938301,-500.0,0.00042891,21]
[343255167,1732532938366,-1187.33,0.00042891,21]
[343255168,1732532938428,-910.51,0.00042891,21]
[343255169,1732532938490,-824.84,0.00042891,21]
[343255170,1732532938551,-1094.91,0.00042891,21]
[343255171,1732532938614,-922.35,0.00042891,21]
[343255172,1732532938678,-880.06,0.00042891,21]
[343255173,1732532938743,-2617.3,0.00042891,2]
[343255174,1732532938824,-500.0,0.00042891,21]
[343255175,1732532938904,-500.0,0.00042891,21]
[343255176,1732532938968,-1017.78,0.00042891,21]
[343255177,1732532939033,-1037.63,0.00042891,21]
[343255178,1732532939096,-777.53,0.00042891,21]
[343255179,1732532939159,-1089.67,0.00042891,21]
[343255180,1732532939233,-551.59,0.00042891,21]
[343255181,1732532939298,-790.58,0.00042891,21]
[343255182,1732532939357,-4250.59,0.00042891,21]
[343255183,1732532939421,-500.0,0.00042891,21]
[343255184,1732532939482,-500.0,0.00042891,21]
[343255185,1732532939545,-1539.48,0.00042891,21]
[343255186,1732532939622,-500.0,0.00042891,21]
[343255187,1732532939685,-961.47,0.00042891,21]
[343255188,1732532939748,-1576.46,0.00042891,21]
[343255189,1732532939811,-500.0,0.00042891,21]
[343255190,1732532939872,-504.82,0.00042891,21]
[343255191,1732532939936,-542.31,0.00042891,21]
[343255192,1732532940002,-500.0,0.00042891,21]
[343255193,1732532940070,-725.84,0.00042891,21]
[343255194,1732532940138,-2192.49,0.00042891,21]
[343255195,1732532940223,-1580.0,0.00042891,21]
[343255196,1732532940301,-671.48,0.00042891,21]
[343255197,1732532940371,-633.88,0.00042891,21]
[343255198,1732532940442,-1292.43,0.00042891,21]
[343255199,1732532940510,-500.0,0.00042891,21]
[343255200,1732532940578,-700.87,0.00042891,21]
[343255201,1732532940644,-713.25,0.00042891,21]
[343255202,1732532940705,-875.61,0.00042891,21]
[343255203,1732532940765,-5528.84,0.00042891,21]
[343255204,1732532940828,-1499.87,0.00042891,21]
[343255205,1732532940887,-1922.44,0.00042891,21]
[343255206,1732532940948,-500.0,0.00042891,21]
[343255207,1732532941010,-500.0,0.00042891,21]
[343255208,1732532941065,-158.0,0.000429,47]
[343255209,1732532941124,-2135.66,0.0004291,21]
[343255210,1732532941191,-500.0,0.0004291,21]
[343255211,1732532941254,-500.0,0.0004291,21]
[343255212,1732532941319,-500.0,0.0004291,21]
[343255213,1732532941384,-807.3,0.0004291,21]
[343255214,1732532941456,-158.68272546,0.0004291,21]
[343255215,1732532941523,-500.0,0.0004291,21]
[343255216,1732532941595,-757.94,0.0004291,21]
[343255217,1732532941661,-500.0,0.0004291,21]
[343255218,1732532941729,-500.0,0.0004291,21]
[343255219,1732532941796,-500.0,0.0004291,21]
[343255220,1732532941866,-169.31232598,0.0004291,21]
[343255221,1732532941934,-694.46,0.0004291,21]
[343255222,1732532942009,-917.86,0.0004291,21]
[343255223,1732532942085,-257.98,0.0004291,21]
[343255224,1732532942150,-500.0,0.0004291,21]
[343255225,1732532942219,-500.0,0.0004291,21]
[343255226,1732532942292,-500.0,0.0004291,21]
[343255227,1732532942355,-500.0,0.0004291,21]
[343255228,1732532942421,-500.0,0.0004291,21]
[343255229,1732532942486,-500.0,0.0004291,21]
[343255230,1732532942553,-500.0,0.0004291,21]
[343255231,1732532942620,-1043.91,0.0004291,21]
[343255232,1732532942683,-295.15,0.0004291,21]
[343255233,1732532942744,-500.0,0.0004291,21]
[343255234,1732532942808,-500.0,0.0004291,21]
[343255235,1732532942873,-548.2335568,0.0004291,21]
[343255236,1732532942937,-500.0,0.0004291,21]
[343255237,1732532942999,-500.0,0.0004291,21]
[343255238,1732532943066,-163.37979278,0.0004291,21]
[343255239,1732532943139,-500.0,0.0004291,21]
[343255240,1732532943222,-500.0,0.0004291,21]
[343255241,1732532943297,-500.0,0.0004291,21]
[343255242,1732532943367,-500.0,0.0004291,21]
[343255243,1732532943439,-500.0,0.0004291,21]
[343255244,1732532943509,-500.0,0.0004291,21]
[343255245,1732532943584,-500.0,0.0004291,21]
[343255246,1732532943660,-500.0,0.0004291,21]
[343255247,1732532943911,-342.92247999,0.0004291,21]
[343255248,1732532943997,-500.0,0.0004291,21]
[343255249,1732532944073,-500.0,0.0004291,21]
[343255250,1732532944154,-500.0,0.0004291,21]
[343255251,1732532944245,-500.0,0.0004291,21]
[343255252,1732532944319,-500.0,0.0004291,21]
[343255253,1732532944390,-500.0,0.0004291,21]
[343255254,1732532944458,-500.0,0.0004291,21]
[343255255,1732532944530,-500.0,0.0004291,21]
[343255256,1732532944600,-500.0,0.0004291,21]
[343255257,1732532944665,-761.85,0.0004291,21]
[343255258,1732532944733,-928.86,0.0004291,21]
[343255259,1732532944804,-500.0,0.0004291,21]
[343255260,1732532944874,-500.0,0.0004291,21]
[343255261,1732532944940,-500.0,0.0004291,21]
[343255262,1732532945006,-500.0,0.0004291,7]
[343255263,1732532945071,-779.71,0.0004291,21]
[343255264,1732532945138,-500.0,0.0004291,21]
[343255265,1732532945213,-500.0,0.0004291,21]
[343255266,1732532945287,-500.0,0.0004291,21]
[343255267,1732532945354,-500.0,0.0004291,21]
[343255268,1732532945422,-500.0,0.0004291,21]
[343255269,1732532945487,-500.0,0.0004291,21]
[343255270,1732532945553,-626.16500837,0.0004291,21]
[343255271,1732532945616,-500.0,0.0004291,21]
[343255272,1732532945686,-580.99,0.0004291,21]
[343255273,1732532945756,-500.0,0.0004291,21]
[343255274,1732532945817,-500.0,0.0004291,21]
[343255275,1732532945883,-643.7555289,0.0004291,21]
[343255276,1732532945955,-500.0,0.0004291,21]
[343255277,1732532946021,-500.0,0.0004291,21]
[343255278,1732532946091,-818.46,0.0004291,21]
[343255279,1732532946160,-507.36,0.00042911,21]
[343255280,1732532946227,-500.0,0.00042911,21]
[343255281,1732532946294,-500.0,0.00042911,21]
[343255282,1732532946368,-500.0,0.00042911,21]
[343255283,1732532946437,-500.0,0.00042911,21]
[343255284,1732532946511,-420.09104491,0.00042911,21]
[343255285,1732532946583,-500.0,0.00042911,21]
[343255286,1732532946652,-500.0,0.00042911,21]
[343255287,1732532946718,-260.24751687,0.00042911,21]
[343255288,1732532946781,-536.4,0.00042911,21]
[343255289,1732532946844,-500.0,0.00042911,21]
[343255290,1732532946909,-500.0,0.00042911,21]
[343255291,1732532946974,-189.84299764,0.00042911,21]
[343255292,1732532947040,-500.0,0.00042911,21]
[343255293,1732532947104,-500.0,0.00042911,21]
[343255294,1732532947170,-500.0,0.00042911,21]
[343255295,1732532947239,-581.29,0.00042911,21]
[343255296,1732532947310,-500.0,0.00042911,21]
[343255297,1732532947382,-883.86,0.00042911,21]
[343255298,1732532947452,-500.0,0.00042911,21]
[343255299,1732532947520,-553.75,0.00042911,21]
[343255300,1732532947593,-711.45,0.00042911,21]
[343255301,1732532947668,-500.0,0.00042911,21]
[343255302,1732532947735,-548.22,0.00042911,21]
[343255303,1732532947803,-500.0,0.00042911,21]
[343255304,1732532947868,-652.27,0.00042911,21]
[343255305,1732532947932,-846.74,0.00042911,21]
[343255306,1732532948002,-500.0,0.00042911,21]
[343255307,1732532948067,-500.0,0.00042911,120]
[343255308,1732532948140,-500.0,0.00042911,21]
[343255309,1732532948215,-1149.65,0.00042913,21]
[343255310,1732532948289,-500.0,0.00042913,21]
[343255311,1732532948356,-808.32,0.00042913,21]
[343255312,1732532948416,-500.0,0.00042913,21]
[343255313,1732532948480,-500.0,0.00042913,21]
[343255314,1732532948548,-500.0,0.00042913,21]
[343255315,1732532948614,-500.0,0.00042913,21]
[343255316,1732532948680,-500.0,0.00042913,21]
[343255317,1732532948746,-500.0,0.00042913,21]
[343255318,1732532948810,-500.0,0.00042913,21]
[343255319,1732532948873,-500.0,0.00042913,21]
[343255320,1732532948935,-500.0,0.00042913,21]
[343255321,1732532949005,-821.63,0.00042913,21]
[343255322,1732532949069,-500.0,0.00042913,21]
[343255323,1732532949134,-384.45432477,0.00042914,21]
[343255324,1732532949201,-500.0,0.00042914,21]
[343255325,1732532949290,-233.57,0.0004296,7]
[343255326,1732532949359,-746.0,0.00042963,21]
[343255327,1732532949426,-3255.95,0.00042963,21]
[343255328,1732532949492,-150.5,0.0004297,7]
[343255329,1732532949561,-1886.59844183,0.00042978,120]
[343255330,1732532949628,-1886.59844182,0.00042978,120]
[343255331,1732532949712,-1886.59844182,0.00042978,120]
[343255332,1732532949800,-150.5,0.0004298,7]
[343255333,1732532949882,-164.0314433,0.0004299,120]
[343255334,1732532949950,-146863.79746714,0.00043,7]
[343255335,1732532950022,-10000.0,0.00043,120]
[343255336,1732532950090,-5000.0,0.00043,90]
[343255337,1732532950165,-250.0,0.00043,60]
[343255338,1732532950240,-193870.46735643,0.00043,120]
[343255339,1732532950313,-550.0,0.00043,2]
[343255340,1732532950378,-2346.04713562,0.00043,120]
[343255341,1732532950447,-1154.3609,0.00043,30]
[343255342,1732532950513,-726.439,0.00043,30]
[343255343,1732532950576,-1590.2539,0.00043,30]
[343255344,1732532950640,-1224.61,0.00043012,21]
[343255345,1732532950707,-500.0,0.00043012,21]
[343255346,1732532950769,-500.0,0.00043012,21]
[343255347,1732532950833,-500.0,0.00043012,21]
[343255348,1732532950897,-1154.27,0.00043012,21]
[343255349,1732532950963,-924.22,0.00043012,21]
[343255350,1732532951033,-696.89,0.00043012,21]
[343255351,1732532951102,-3150.76,0.00043012,21]
[343255352,1732532951170,-9504.79,0.00043012,21]
[343255353,1732532951242,-7938.89,0.00043012,21]
[343255354,1732532951309,-1024.94,0.00043012,21]
[343255359,1732532951384,-3978.3,0.00043012,21]
[343255360,1732532951458,-1146.63,0.00043012,21]
[343255361,1732532951524,-1748.64,0.00043012,21]
[343255362,1732532951589,-5468.25,0.00043012,21]
[343255363,1732532951652,-708.11,0.00043012,21]
[343255364,1732532951714,-500.0,0.00043012,21]
[343255365,1732532951770,-1409.15,0.00043012,21]
[343255366,1732532951828,-758.58,0.00043012,21]
[343255367,1732532951884,-5734.8,0.00043012,21]
[343255368,1732532951946,-677.5,0.00043012,21]
[343255369,1732532952009,-580.49,0.00043012,21]
[343255370,1732532952073,-1167.03,0.00043012,21]
[343255371,1732532952131,-1719.67,0.00043012,21]
[343255372,1732532952198,-3582.8,0.00043012,21]
[343255373,1732532952263,-500.0,0.00043012,21]
[343255374,1732532952327,-4585.2,0.00043013,21]
[343255375,1732532952387,-851.7,0.00043013,21]
[343255376,1732532952450,-5410.63,0.00043013,21]
[343255377,1732532952512,-500.0,0.00043013,21]
[343255378,1732532952833,-1973.4,0.00043013,21]
[343255379,1732532952898,-4420.66,0.00043013,21]
[343255380,1732532952965,-5984.38,0.00043013,21]
[343255381,1732532953034,-6051.6,0.00043013,21]
[343255382,1732532953100,-1300.59,0.00043013,21]
[343255383,1732532953168,-1357.91,0.00043013,21]
[343255384,1732532953240,-3894.59,0.00043013,21]
[343255385,1732532953310,-14627.41,0.00043013,21]